bitfinex/quotes_ETHUSD_20220226
["timestamp","ask_amount","ask_price","bid_price","bid_amount"]
[1645849145166,8.6541,2805.2,2803.5,0.3574]
[1645849145167,14.8822,2805.2,2803.5,0.3574]
[1645849145368,14.8822,2805.2,2803.7,0.3574]
[1645849145369,1.50676023,2805.1,2803.7,0.3574]
[1645849145568,7.4322,2805.2,2803.7,0.6574]
[1645849145767,7.4322,2805.2,2803.9,0.6574]
[1645849145969,1.56210044,2805.1,2804.4,1.14565689]
[1645849146169,0.1426,2805.1,2804.4,1.14565689]
[1645849146368,0.1426,2805.2,2804.4,1.14565689]
[1645849147007,0.1426,2805.4,2804.4,1.14565689]
[1645849147213,1.50663947,2805.3,2804.0,5.0641]
[1645849147412,0.1426,2805.2,2804.0,6.3641]
[1645849147810,0.1426,2805.4,2804.0,6.3641]
[1645849148015,1.50663567,2805.3,2804.0,6.3641]
[1645849148212,1.44465765,2805.1,2804.5,1.11256822]
[1645849148412,1.44465765,2805.1,2804.0,6.8791]
[1645849148614,1.30218586,2805.1,2804.0,6.8791]
[1645849148812,0.00517605,2804.9,2804.0,6.8791]
[1645849149512,0.00517605,2804.9,2804.4,1.40624335]
[1645849149912,0.1426,2805.3,2804.4,1.40624335]
[1645849150112,0.00517646,2804.6,2804.4,1.40624335]
[1645849150316,0.00517646,2804.6,2804.4,1.70624335]
[1645849150959,1.02576322,2805.3,2804.4,1.70624335]
[1645849151161,1.838,2805.7,2804.4,1.70624335]
[1645849151362,0.00517641,2804.6,2804.4,1.70624335]
[1645849151565,0.00517641,2804.6,2804.4,0.3]
[1645849151762,0.00517641,2804.6,2804.0,6.0641]
[1645849151961,0.00517641,2804.6,2804.0,6.3641]
[1645849152166,0.3574,2805.3,2804.1,0.89148]
[1645849152368,0.3574,2805.3,2804.2,3.5]
[1645849152564,0.18281168,2805.5,2804.1,0.89148]
[1645849152565,0.00517664,2804.4,2804.3,1.27423013]
[1645849152966,0.00517664,2804.4,2804.3,1.57423013]
[1645849153467,0.3574,2805.6,2804.3,1.57423013]
[1645849153766,0.00517658,2804.5,2804.3,1.57423013]
[1645849154612,1.40105984,2805.2,2804.3,1.57423013]
[1645849154812,0.00517652,2804.5,2804.3,1.57423013]
[1645849155815,0.1426,2805.5,2804.3,1.57423013]
[1645849156016,0.00517652,2804.5,2804.3,1.57423013]
[1645849157120,1.20903899,2805.2,2804.3,1.57423013]
[1645849157320,0.00517652,2804.5,2804.3,1.57423013]
[1645849158362,1.20903899,2805.2,2804.3,1.57423013]
[1645849158560,0.00517652,2804.5,2804.3,1.57423013]
[1645849159459,1.20903899,2805.2,2804.3,1.57423013]
[1645849159660,0.00517652,2804.5,2804.3,1.57423013]
[1645849160560,1.20903899,2805.2,2804.3,1.57423013]
[1645849160958,0.00517652,2804.5,2804.3,1.57423013]
[1645849161759,1.20903899,2805.2,2804.3,1.57423013]
[1645849162009,0.00517652,2804.5,2804.3,0.3]
[1645849162217,0.00517652,2804.5,2804.1,2.19148]
[1645849162616,0.00517652,2804.5,2804.1,1.19148]
[1645849162817,0.00517652,2804.5,2804.1,4.69148]
[1645849163014,1.20903899,2805.2,2804.1,1.19148]
[1645849163215,1.20903899,2805.2,2804.4,1.30680968]
[1645849163614,0.1426,2805.3,2804.4,1.60680968]
[1645849164516,0.00517599,2805.0,2804.4,1.60680968]
[1645849165519,1.32308927,2805.1,2804.4,1.60680968]
[1645849165762,0.00517617,2804.8,2804.4,1.60680968]
[1645849166666,0.00517617,2804.8,2804.1,5.53407]
[1645849166667,1.68048927,2805.1,2804.1,0.1426]
[1645849166868,1.68048927,2805.1,2804.0,1.5641]
[1645849166869,0.00517629,2804.7,2804.0,1.5641]
[1645849167069,0.00517629,2804.7,2803.7,0.25]
[1645849167269,0.00517629,2804.7,2803.5,0.1426]
[1645849167468,0.62277629,2804.7,2803.4,1.3494]
[1645849167669,1.17395263,2804.6,2803.4,1.2068]
[1645849167870,1.03135263,2804.6,2803.5,3.5]
[1645849168074,0.00517694,2804.2,2803.5,3.5]
[1645849168871,0.00517694,2804.2,2803.6,0.8916]
[1645849169072,3.2442,2805.0,2803.7,3.5]
[1645849169275,0.00517717,2804.0,2803.7,4.5]
[1645849169536,0.00517717,2804.0,2803.7,4.9426]
[1645849169731,0.00517717,2804.0,2803.7,1.4426]
[1645849170131,0.00517717,2804.0,2803.7,0.4426]
[1645849170333,3.2442,2805.0,2804.3,1.37249945]
[1645849170633,4.0996,2805.1,2804.3,1.37249945]
[1645849170830,0.975,2805.1,2804.3,1.37249945]
[1645849171631,0.00517617,2804.8,2804.3,1.37249945]
[1645849172435,0.00517617,2804.8,2803.8,5.83146]
[1645849172635,1.09043518,2804.9,2803.9,0.3]
[1645849172838,0.00517635,2804.7,2803.9,0.3]
[1645849173664,0.00517635,2804.7,2804.0,1.29714349]
[1645849173865,1.09043518,2804.9,2804.0,1.29714349]
[1645849174064,0.00517664,2804.4,2804.0,1.29714349]
[1645849175067,1.09043518,2804.9,2804.0,1.29714349]
[1645849175266,0.00481777,2804.3,2803.9,0.3]
[1645849175666,0.00481777,2804.3,2803.8,5.2399]
[1645849176267,1.09043518,2804.9,2803.8,5.2399]
[1645849176467,0.00481793,2804.2,2804.1,1.06445512]
[1645849177510,1.09043518,2804.9,2804.0,0.3]
[1645849177711,0.00481783,2804.3,2803.9,3.5]
[1645849177910,0.00481783,2804.3,2803.8,5.2399]
[1645849178712,1.09043518,2804.9,2804.2,1.24844906]
[1645849179212,1.09043518,2804.9,2804.1,0.3]
[1645849179612,1.09043518,2804.9,2803.8,6.13146]
[1645849180013,0.00484169,2804.6,2803.8,6.43146]
[1645849180414,0.00484169,2804.6,2804.1,1.13110683]
[1645849181080,1.09043518,2804.9,2804.1,1.13110683]
[1645849181274,0.00484185,2804.5,2803.8,6.43146]
[1645849181475,0.00484185,2804.5,2803.8,6.13146]
[1645849181675,0.00484185,2804.5,2803.8,6.43146]
[1645849182079,0.00484185,2804.5,2803.8,6.13146]
[1645849182278,1.09043518,2804.9,2803.8,6.43146]
[1645849182479,1.09043518,2804.9,2804.3,1.38061143]
[1645849182681,0.5,2805.0,2804.3,1.38061143]
[1645849182882,0.5,2805.0,2803.8,6.43146]
[1645849183683,4.0,2805.0,2803.8,6.43146]
[1645849183881,4.0,2805.0,2804.0,1.16665684]
[1645849183882,0.00484016,2804.5,2804.0,1.16665684]
[1645849184285,0.00484016,2804.5,2804.0,1.16508646]
[1645849184726,0.5,2805.0,2804.0,1.16508646]
[1645849184927,0.00484032,2804.4,2804.0,1.16508646]
[1645849185526,0.00484032,2804.4,2803.8,6.43146]
[1645849185727,0.00484032,2804.4,2803.8,6.13146]
[1645849185930,0.5,2805.0,2803.8,6.43146]
[1645849186129,0.00484048,2804.2,2803.8,6.43146]
[1645849186334,0.00484048,2804.2,2803.8,6.13146]
[1645849186530,0.00484048,2804.2,2803.8,6.43146]
[1645849187134,1.31347698,2804.7,2803.8,6.13146]
[1645849187334,0.00484069,2804.1,2803.8,6.53475458]
[1645849188367,1.31347698,2804.7,2803.8,6.53475458]
[1645849188564,0.00484075,2804.1,2803.8,5.34319458]
[1645849189563,1.31347698,2804.7,2803.8,5.34319458]
[1645849189765,1.31347698,2804.7,2803.9,1.32659458]
[1645849189766,0.00484075,2804.1,2803.9,1.32659458]
[1645849190765,1.31347698,2804.7,2803.9,1.32659458]
[1645849190965,0.00484069,2804.1,2803.9,1.32659458]
[1645849191863,1.31347698,2804.7,2803.9,1.32659458]
[1645849192129,0.00484069,2804.1,2803.9,1.32659458]
[1645849193131,1.31347698,2804.7,2803.9,1.32659458]
[1645849193431,0.00484069,2804.1,2803.9,1.32659458]
[1645849193933,0.00484069,2804.1,2803.8,6.53474458]
[1645849194235,1.31347698,2804.7,2803.8,6.53474458]
[1645849194431,1.50666324,2804.6,2803.8,5.64319458]
[1645849194633,0.00484075,2804.1,2803.8,5.34319458]
[1645849194834,0.00484075,2804.1,2803.8,2.62659458]
[1645849195032,0.00484075,2804.1,2803.9,1.32659458]
[1645849195434,1.31347698,2804.7,2803.9,1.32659458]
[1645849195634,1.50663212,2804.6,2803.9,1.32659458]
[1645849195872,1.50663212,2804.6,2803.6,1.32659458]
[1645849195873,0.00484069,2804.1,2803.6,1.32659458]
[1645849196072,0.00484069,2804.1,2803.5,5.53939458]
[1645849196273,0.00484069,2804.1,2803.5,4.2128]
[1645849196571,0.00484069,2804.1,2803.4,4.27109458]
[1645849196572,3.50484069,2804.1,2803.4,4.27109458]
[1645849196773,1.3011916,2803.8,2803.4,4.27109458]
[1645849196972,1.3011916,2803.8,2803.4,1.32659458]
[1645849197176,1.3011916,2803.8,2803.3,1.32659458]
[1645849197675,1.3011916,2803.8,2803.3,1.12659458]
[1645849198281,0.00484117,2803.7,2803.3,1.12659458]
[1645849198580,0.00484117,2803.7,2803.3,0.3]
[1645849199176,1.1405,2804.2,2803.2,1.3]
[1645849199381,0.00484123,2803.6,2803.2,0.3]
[1645849199626,0.00484123,2803.6,2803.1,0.0008]
[1645849199627,0.00484123,2803.6,2803.4,1.12115729]
[1645849199827,0.00484123,2803.6,2803.1,0.0008]
[1645849200326,1.10451239,2804.0,2803.1,0.3008]
[1645849200530,0.00484139,2803.5,2803.1,0.3008]
[1645849200728,0.00484139,2803.5,2803.0,2.8182491]
[1645849200927,0.00484139,2803.5,2803.0,1.55418769]
[1645849201329,0.00484139,2803.5,2802.9,2.5154]
[1645849201527,1.46191239,2804.0,2802.9,2.5154]
[1645849201528,1.46191239,2804.0,2802.9,1.2154]
[1645849201728,0.0048415,2803.4,2802.9,2.2154]
[1645849201930,0.0048415,2803.4,2802.9,1.2154]
[1645849202132,0.0048415,2803.4,2802.9,1.5154]
[1645849202536,0.0048415,2803.4,2802.9,2.58746196]
[1645849202737,1.10046095,2803.5,2802.9,2.5154]
[1645849202937,3.8574,2804.1,2802.9,1.3]
[1645849203137,0.00484161,2803.3,2802.8,0.3]
[1645849203385,0.00484161,2803.3,2802.7,1.2012]
[1645849203386,0.00389681,2803.3,2802.7,1.5012]
[1645849203586,0.00389681,2803.3,2802.7,1.0012]
[1645849203985,1.18833957,2803.8,2803.1,1.24365765]
[1645849204984,1.18833957,2803.8,2803.0,0.3]
[1645849205184,1.18833957,2803.8,2802.7,1.3012]
[1645849205587,1.18833957,2803.8,2803.2,1.33550134]
[1645849205787,1.18833957,2803.8,2803.2,1.63550134]
[1645849206391,1.18833957,2803.8,2803.2,0.3]
[1645849206588,1.18833957,2803.8,2803.1,0.1]
[1645849206790,4.6176,2804.1,2803.1,1.33550134]
[1645849207218,4.0,2804.1,2803.0,1.33550134]
[1645849207717,0.00484114,2803.7,2803.0,1.33550134]
[1645849207917,1.22890279,2803.6,2803.0,1.33550134]
[1645849208320,1.22890279,2803.6,2803.0,1.63550134]
[1645849208517,0.00484114,2803.7,2802.9,1.63550134]
[1645849208717,4.0,2804.1,2802.9,1.33550134]
[1645849208918,0.00490409,2803.4,2802.9,1.33550134]
[1645849209118,0.00490409,2803.4,2803.0,1.63550134]
[1645849209918,4.0,2804.1,2803.1,1.30938076]
[1645849209919,1.09509646,2803.8,2803.1,1.30938076]
[1645849210119,0.0049042,2803.3,2803.0,1.63550134]
[1645849210319,0.0049042,2803.3,2803.0,0.3]
[1645849210521,0.0049042,2803.3,2802.9,1.33550134]
[1645849210813,0.0049042,2803.3,2803.0,1.33550134]
[1645849210999,0.0049042,2803.3,2803.0,1.63550134]
[1645849211202,2.1405,2804.2,2803.1,1.99290134]
[1645849211398,0.00490425,2803.3,2803.1,0.3]
[1645849211901,0.00490425,2803.3,2803.1,2.92334412]
[1645849212304,1.1405,2804.2,2803.1,2.14299611]
[1645849212500,1.1405,2804.2,2803.3,1.33385817]
[1645849212701,1.1405,2804.2,2803.3,1.63385817]
[1645849212902,1.1405,2804.2,2803.4,1.33385817]
[1645849213306,1.20515498,2804.4,2803.5,1.33385817]
[1645849213702,0.00483667,2803.9,2803.5,1.33385817]
[1645849213903,0.00483667,2803.9,2803.6,3.5]
[1645849214103,0.00483667,2803.9,2803.8,1.33385817]
[1645849214308,0.00483667,2803.9,2803.8,5.34885817]
[1645849214524,0.1426,2805.6,2803.9,4.3574]
[1645849214724,1.50643077,2805.5,2804.1,1.99092181]
[1645849214926,1.50643077,2805.5,2804.6,1.42873497]
[1645849216127,1.0,2805.7,2805.0,0.3344]
[1645849216327,0.1424,2805.8,2805.0,1.4736]
[1645849216328,0.00484347,2805.2,2805.0,1.4736]
[1645849216725,0.00484347,2805.2,2805.1,0.3]
[1645849217128,0.13819997,2806.2,2805.1,0.3]
[1645849217331,0.13819997,2806.2,2805.6,1.03224042]
[1645849217332,1.50611096,2806.1,2805.6,1.03224042]
[1645849217728,0.00397657,2806.3,2805.6,1.03224042]
[1645849217927,1.5100397,2806.3,2805.6,1.03224042]
[1645849218574,0.00185684,2806.1,2805.6,1.03224042]
[1645849219173,0.00185684,2806.1,2805.1,2.1724]
[1645849219371,0.00185684,2806.1,2805.1,1.1724]
[1645849219573,1.09152782,2806.3,2805.1,1.1724]
[1645849219773,0.00471785,2805.7,2805.1,0.815]
[1645849220173,0.00471785,2805.7,2805.6,1.13257927]
[1645849220373,0.00471785,2805.7,2805.6,1.43257927]
[1645849220771,0.00397657,2806.5,2805.6,1.43257927]
[1645849220973,0.0047178,2805.8,2805.6,1.43257927]
[1645849221873,0.00397657,2806.2,2805.1,1.8724]
[1645849222128,0.00397657,2806.2,2805.1,0.515]
[1645849222129,0.00471774,2805.8,2805.1,0.515]
[1645849222331,0.00471774,2805.8,2805.1,0.815]
[1645849222931,0.00471774,2805.8,2805.4,1.24503907]
[1645849223133,0.00397657,2806.2,2805.4,1.24503907]
[1645849223431,0.00472234,2805.6,2805.4,0.3]
[1645849223830,0.00472234,2805.6,2805.1,0.815]
[1645849224030,0.00472234,2805.6,2805.2,3.5]
[1645849224231,0.00472234,2805.6,2805.2,4.5]
[1645849224432,0.00397657,2806.2,2805.4,1.12655172]
[1645849224629,0.00455896,2805.5,2805.4,1.12655172]
[1645849224831,0.00455896,2805.5,2805.4,1.42655172]
[1645849225433,0.00397657,2806.2,2805.4,1.42655172]
[1645849225633,1.29032126,2806.3,2805.4,1.42655172]
[1645849225877,0.00455885,2805.6,2805.4,1.42655172]
[1645849226677,0.00397657,2806.2,2805.4,1.42655172]
[1645849226877,0.00397657,2806.5,2805.5,3.5]
[1645849227086,0.00456403,2805.6,2805.5,3.5]
[1645849227383,0.00456403,2805.6,2805.5,5.015]
[1645849227581,0.00456403,2805.6,2805.5,4.015]
[1645849227785,0.00456403,2805.6,2805.5,5.015]
[1645849227981,0.02222734,2806.5,2806.0,1.31272113]
[1645849227982,0.00397657,2806.5,2806.0,1.31272113]
[1645849228183,0.01829421,2806.5,2806.0,1.31272113]
[1645849229184,0.14637657,2806.8,2806.0,1.31272113]
[1645849229387,0.00457406,2806.4,2806.0,1.31272113]
[1645849229823,0.00457406,2806.4,2806.1,3.5]
[1645849230224,0.00457406,2806.4,2806.1,5.015]
[1645849230526,0.00397657,2807.0,2806.1,5.015]
[1645849230527,0.00397657,2807.0,2806.1,4.015]
[1645849230723,0.0182906,2806.8,2806.4,0.3]
[1645849231322,0.0182906,2806.8,2806.3,0.89079]
[1645849231521,0.00397657,2807.0,2806.3,0.89079]
[1645849231724,0.00457204,2806.7,2806.3,0.89079]
[1645849231923,0.00457204,2806.7,2806.4,1.02709843]
[1645849232129,0.00457204,2806.7,2806.4,4.52709843]
[1645849232329,0.00457204,2806.7,2806.4,5.82709843]
[1645849232728,0.00397657,2807.3,2806.4,5.82709843]
[1645849232927,0.00397657,2807.3,2806.4,6.34209843]
[1645849233132,0.00157872,2806.7,2806.4,6.34209843]
[1645849233780,0.00157872,2806.7,2806.4,8.12339843]
[1645849233977,0.00397657,2807.5,2806.4,8.48079843]
[1645849234177,0.00457601,2806.7,2806.6,0.89065]
[1645849234377,0.00457601,2806.7,2806.6,1.19065]
[1645849235081,0.00397657,2807.3,2806.6,5.20565]
[1645849235281,0.00397657,2807.5,2806.8,0.89062]
[1645849235482,0.0189897,2807.2,2807.0,11.80053]
[1645849235785,0.00397657,2808.2,2807.1,4.6724]
[1645849235981,1.35365084,2808.0,2807.1,4.315]
[1645849236179,1.35365084,2808.0,2807.1,1.815]
[1645849236381,1.35365084,2808.0,2807.1,1.3]
[1645849236582,0.3574,2807.8,2806.9,4.2856]
[1645849236781,0.3574,2807.8,2806.9,3.9856]
[1645849237026,1.3574,2807.8,2806.9,3.9856]
[1645849237228,0.00397657,2807.9,2806.9,3.9856]
[1645849237430,1.0,2808.0,2806.9,3.9856]
[1645849237629,1.0,2807.8,2806.9,1.0]
[1645849237828,3.5,2807.7,2806.7,0.00300942]
[1645849238028,0.3574,2807.6,2806.7,0.00300942]
[1645849238229,0.00397657,2807.5,2806.7,0.00300942]
[1645849238631,1.10378485,2807.3,2806.7,0.00300942]
[1645849238831,1.10378485,2807.3,2806.6,1.5194758]
[1645849238832,0.00397657,2807.5,2806.6,1.8194758]
[1645849239033,0.0048474,2807.3,2806.7,0.00484854]
[1645849239631,0.0048474,2807.3,2806.8,0.89064]
[1645849239830,0.0048474,2807.3,2806.8,1.19064]
[1645849240029,0.00397657,2807.8,2807.2,1.06883185]
[1645849240232,0.00484734,2807.3,2807.2,1.36883185]
[1645849240771,0.00484734,2807.3,2806.8,1.3]
[1645849240972,0.00484734,2807.3,2806.7,2.22564848]
[1645849241169,0.3574,2807.7,2806.6,0.55]
[1645849241370,0.3574,2807.7,2806.7,0.00484485]
[1645849241371,0.00484371,2807.3,2806.7,0.00484485]
[1645849241571,1.16577417,2807.2,2806.7,0.00484485]
[1645849242375,1.16577417,2807.2,2806.5,0.3]
[1645849242578,0.00484365,2807.3,2806.7,0.00484479]
[1645849243582,6.11637657,2807.7,2806.5,0.3]
[1645849243776,0.00484368,2807.3,2806.7,0.00484482]
[1645849244924,0.00484393,2807.3,2806.7,0.00484507]
[1645849245125,1.29751022,2807.3,2806.7,1.14059683]
[1645849245824,0.00484393,2807.3,2806.7,1.14059683]
[1645849246024,0.00397657,2807.6,2806.7,1.13575176]
[1645849246327,0.00484393,2807.3,2806.7,1.14059683]
[1645849246523,0.00484393,2807.3,2806.7,1.13201919]
[1645849247134,1.14370342,2807.4,2806.7,1.12717412]
[1645849247431,0.00184248,2807.3,2806.7,1.12717412]
[1645849247827,0.00184248,2807.3,2806.6,0.3]
[1645849248027,0.00581905,2807.3,2806.6,0.3]
[1645849248293,1.14370342,2807.4,2806.5,0.3]
[1645849248501,0.00397657,2807.3,2806.5,0.3]
[1645849248698,0.00397657,2807.3,2806.7,0.00484887]
[1645849248699,0.0088243,2807.3,2806.7,0.00484887]
[1645849248906,1.08189164,2806.9,2806.7,0.00484887]
[1645849249300,0.00397657,2807.2,2806.7,0.00484887]
[1645849249499,3.86224773,2807.3,2806.0,4.1577]
[1645849249500,1.3574,2807.3,2806.0,4.1577]
[1645849249701,3.86137657,2807.2,2806.0,4.1577]
[1645849249901,3.86137657,2807.2,2806.7,0.00484881]
[1645849250103,0.3574,2807.2,2806.7,0.00484881]
[1645849250301,1.21821182,2807.0,2806.7,0.00484881]
[1645849250508,0.36137657,2807.2,2806.7,0.00484881]
[1645849250703,0.36137657,2807.2,2806.3,1.3891821]
[1645849250704,0.3574,2807.2,2806.3,1.3891821]
[1645849250906,0.3574,2807.2,2806.3,0.3]
[1645849250907,0.36137657,2807.2,2806.3,0.3]
[1645849251102,0.3574,2807.2,2806.7,0.00484881]
[1645849251309,0.00397657,2807.1,2806.7,0.00484881]
[1645849251506,0.3574,2807.2,2806.7,0.00484881]
[1645849251703,0.3574,2807.2,2806.0,4.55344881]
[1645849251907,0.00397657,2807.1,2806.0,4.55344881]
[1645849252127,1.40563203,2807.0,2806.3,1.22472003]
[1645849252329,1.40563203,2807.0,2806.7,0.00492059]
[1645849253128,1.40563203,2807.0,2806.3,1.22472003]
[1645849253529,0.00397657,2807.1,2806.3,1.22472003]
[1645849253734,0.14637657,2807.4,2806.4,1.19072]
[1645849253930,0.00397657,2807.4,2806.4,1.19072]
[1645849254133,1.50953574,2807.6,2806.4,1.19072]
[1645849254331,5.00953574,2807.6,2806.4,1.19072]
[1645849254530,1.08980373,2807.1,2806.4,1.19072]
[1645849254731,1.08980373,2807.1,2806.4,0.69072]
[1645849254931,1.08980373,2807.1,2806.4,0.3]
[1645849255331,1.08980373,2807.1,2806.3,3.41550003]
[1645849255533,1.08980373,2807.1,2806.3,2.41550003]
[1645849255776,0.00498937,2807.2,2806.6,0.00499056]
[1645849256679,3.50397657,2807.6,2806.3,3.41550003]
[1645849256877,1.11130751,2807.0,2806.3,2.41550003]
[1645849257083,1.11130751,2807.0,2806.6,0.00499065]
[1645849257882,1.11130751,2807.0,2806.3,1.19078]
[1645849257883,1.11130751,2807.0,2806.3,0.69577065]
[1645849258283,1.11130751,2807.0,2806.6,0.00334329]
[1645849258885,1.11130751,2807.0,2806.3,0.64911394]
[1645849259288,0.00397657,2807.5,2806.3,0.64911394]
[1645849259522,1.86690396,2807.5,2806.3,0.64911394]
[1645849259724,1.50552739,2807.4,2806.3,0.94911394]
[1645849259926,1.1424,2807.6,2806.3,0.94911394]
[1645849259927,0.00397657,2807.3,2806.3,0.94911394]
[1645849260122,1.65182443,2807.5,2806.3,0.94911394]
[1645849260323,1.50547585,2807.4,2806.3,0.64911394]
[1645849260528,0.00397657,2807.3,2806.3,0.64911394]
[1645849260728,0.0051823,2807.0,2806.3,0.15429723]
[1645849261027,0.0051823,2807.0,2806.1,1.0]
[1645849261226,0.0051823,2807.0,2806.1,0.815]
[1645849261430,1.40609043,2806.8,2806.1,1.94623807]
[1645849262428,1.40609043,2806.8,2806.1,0.815]
[1645849264387,1.40609043,2806.8,2806.3,0.89078]
[1645849264590,1.40609043,2806.8,2806.4,0.515]
[1645849265393,1.38167657,2807.3,2806.4,0.515]
[1645849265591,0.00518248,2806.8,2806.4,0.52018334]
[1645849266390,1.23927657,2807.3,2806.4,0.515]
[1645849266590,1.26185288,2806.8,2806.4,0.52018334]
[1645849267228,0.00518248,2806.8,2806.4,0.52018334]
[1645849267528,0.00397657,2807.2,2806.4,0.515]
[1645849267727,1.23927657,2807.3,2806.4,0.515]
[1645849267928,0.00518248,2806.8,2806.4,0.52018334]
[1645849268728,1.29871682,2806.9,2806.4,0.515]
[1645849268928,0.00397657,2807.2,2806.4,0.515]
[1645849269129,0.00518248,2806.8,2806.4,0.82018334]
[1645849269928,0.00518248,2806.8,2806.6,1.19187194]
[1645849270133,1.23927657,2807.3,2806.7,0.515]
[1645849270334,0.0048749,2806.8,2806.7,0.815]
[1645849271170,1.31293127,2807.3,2806.7,0.815]
[1645849271371,0.00487487,2806.9,2806.7,1.70564]
[1645849271775,0.01949605,2807.4,2807.0,10.91]
[1645849271975,0.01949605,2807.4,2807.1,19.18778851]
[1645849272377,0.00397657,2808.1,2807.2,6.432]
[1645849272578,0.00397657,2808.1,2807.5,1.17885303]
[1645849272778,1.05752267,2808.2,2807.6,0.515]
[1645849273278,0.00397657,2808.5,2807.6,0.515]
[1645849273477,1.50894461,2808.5,2807.6,0.515]
[1645849274279,1.23492255,2808.0,2807.6,0.515]
[1645849274742,0.00397657,2808.5,2807.6,0.515]
[1645849274941,1.50897188,2808.5,2807.6,0.515]
[1645849275141,0.00517846,2807.9,2807.6,0.515]
[1645849275943,0.00397657,2808.5,2807.6,0.515]
[1645849276141,1.02880455,2808.2,2807.6,0.515]
[1645849276341,0.00517852,2807.9,2807.6,0.515]
[1645849277149,1.02880455,2808.2,2807.6,0.515]
[1645849277551,0.00517852,2807.9,2807.6,0.515]
[1645849278368,0.14637657,2808.5,2807.6,0.515]
[1645849278568,0.00517852,2807.9,2807.6,0.515]
[1645849279571,0.00397657,2808.5,2807.6,0.515]
[1645849279872,1.33588588,2808.3,2807.6,0.515]
[1645849283224,0.00397657,2808.5,2807.6,0.515]
[1645849283425,0.0051753,2808.1,2807.6,0.515]
[1645849284326,1.35175366,2808.2,2807.6,0.515]
[1645849284628,0.00397657,2808.5,2807.6,0.515]
[1645849284629,0.00517542,2808.0,2807.6,0.515]
[1645849285626,0.00397657,2808.5,2807.6,0.515]
[1645849285872,0.00517548,2807.9,2807.6,0.515]
[1645849286872,0.00397657,2808.3,2807.6,1.6821348]
[1645849287079,0.00517554,2807.9,2807.6,1.6821348]
[1645849287780,0.00517554,2807.9,2807.6,12.5921348]
[1645849287982,0.00397657,2808.5,2807.6,17.03896988]
[1645849288181,0.00397657,2808.6,2807.8,10.91]
[1645849288383,0.02069904,2808.3,2807.9,14.41]
[1645849288681,0.02069904,2808.3,2807.9,14.925]
[1645849288883,0.02069904,2808.3,2807.9,16.225]
[1645849289284,0.00397657,2808.7,2807.9,16.225]
[1645849289528,0.00501988,2808.2,2807.9,16.225]
[1645849289719,0.00501988,2808.2,2807.9,17.11522]
[1645849290320,0.00397657,2809.0,2807.9,17.11522]
[1645849290520,0.00397657,2809.0,2808.2,10.91]
[1645849290722,0.02007672,2808.6,2808.4,10.91]
[1645849290922,0.02007672,2808.6,2808.4,0.815]
[1645849291119,0.02007672,2808.6,2808.5,4.93127578]
[1645849291323,0.02007672,2808.6,2808.5,2.94627578]
[1645849291524,0.02007672,2808.6,2808.5,3.24627578]
[1645849291720,0.00397657,2809.4,2808.5,3.24627578]
[1645849291921,0.00184152,2808.7,2808.5,4.13633578]
[1645849292128,0.00184152,2808.7,2808.5,3.13633578]
[1645849292326,0.00184152,2808.7,2808.5,4.43633578]
[1645849292530,0.00184152,2808.7,2808.5,3.43633578]
[1645849292727,0.00397657,2809.4,2808.5,3.43633578]
[1645849292728,0.00397657,2809.4,2808.5,15.34633578]
[1645849292927,0.00397657,2809.4,2809.0,0.3]
[1645849293126,0.02069985,2809.2,2809.0,0.3]
[1645849293368,0.02069985,2809.2,2809.0,1.22465915]
[1645849293567,0.02069985,2809.2,2808.9,0.515]
[1645849293767,0.02069985,2809.2,2808.9,0.815]
[1645849293967,0.00397657,2809.5,2808.9,0.815]
[1645849294168,0.0051752,2809.2,2808.9,0.815]
[1645849294572,0.0051752,2809.2,2809.0,1.07950996]
[1645849295071,0.0051752,2809.2,2809.0,1.59450996]
[1645849295271,0.00397657,2809.7,2809.0,1.59450996]
[1645849295468,0.00517514,2809.2,2809.0,1.59450996]
[1645849295676,0.00517514,2809.2,2809.1,3.5]
[1645849295868,0.00517514,2809.2,2809.1,4.015]
[1645849296069,0.0041825,2809.2,2809.1,1.815]
[1645849296269,0.0041825,2809.2,2809.1,0.815]
[1645849296472,0.00397657,2809.8,2809.1,0.815]
[1645849296670,1.8448,2810.1,2809.5,1.12039086]
[1645849296671,3.22087657,2810.0,2809.5,1.12039086]
[1645849296871,1.8448,2810.1,2809.5,0.515]
[1645849297132,1.63806682,2810.2,2809.5,0.515]
[1645849298334,1.63806682,2810.2,2809.0,0.515]
[1645849298335,0.3574,2810.0,2809.0,0.515]
[1645849298534,0.00397657,2809.9,2809.0,0.815]
[1645849299133,1.3125136,2809.5,2809.0,0.815]
[1645849299532,1.3125136,2809.5,2808.8,0.25]
[1645849299733,1.3125136,2809.5,2808.5,5.6903]
[1645849299933,0.00397657,2809.4,2808.5,5.6903]
[1645849300134,0.00397657,2809.4,2808.7,0.89001]
[1645849300333,3.472,2809.7,2808.7,0.89001]
[1645849300334,0.00517508,2809.3,2808.7,1.40501]
[1645849300772,0.00517508,2809.3,2808.7,0.515]
[1645849301177,1.09282941,2809.4,2808.7,1.80299771]
[1645849301375,0.00517526,2809.1,2808.7,1.80299771]
[1645849301576,0.00517526,2809.1,2808.7,0.515]
[1645849302180,0.00517526,2809.1,2808.7,1.40502]
[1645849302381,0.00397657,2809.3,2808.7,1.40502]
[1645849302581,0.00397657,2809.5,2808.7,1.40502]
[1645849302781,0.00517538,2809.0,2808.7,1.40502]
[1645849303580,0.00397657,2809.6,2808.7,1.40502]
[1645849303782,0.02069866,2809.4,2809.0,1.35065857]
[1645849303980,0.02069866,2809.4,2808.7,1.40502]
[1645849304181,0.02069866,2809.4,2808.9,0.515]
[1645849304829,1.40000931,2809.6,2808.9,0.515]
[1645849305127,0.00517508,2809.3,2808.9,0.515]
[1645849306126,0.00397657,2809.5,2808.9,0.515]
[1645849306329,0.00517514,2809.2,2808.9,0.515]
[1645849307132,0.00397657,2809.5,2808.9,0.515]
[1645849307329,1.39603274,2809.6,2808.9,0.515]
[1645849307530,0.0051752,2809.2,2808.9,0.515]
[1645849308129,0.0051752,2809.2,2808.9,0.815]
[1645849308373,0.00397657,2809.7,2808.9,0.815]
[1645849308569,5.1108,2809.8,2808.9,0.815]
[1645849308570,5.11477657,2809.8,2809.1,0.88989]
[1645849308771,0.0051752,2809.2,2809.1,0.88989]
[1645849308975,0.0051752,2809.2,2809.1,1.40489]
[1645849309374,0.0051752,2809.2,2809.1,1.82114084]